[Event "*** Titled Tuesday Blitz"]
[Site "Chess.com"]
[Date "2021.04.27"]
[Round "11"]
[White "Beca95"]
[Black "miragha_yev"]
[Result "1-0"]
[WhiteElo "2876"]
[BlackElo "2743"]
[TimeControl "180+1"]
[EndTime "12:04:31 PDT"]
[Termination "Beca95 won by resignation"]

1. d4 {[%clk 0:03:00.9]} 1... d5 {[%clk 0:02:57.6]} 2. c4 {[%clk 0:03:01]} 2...
e6 {[%clk 0:02:57.4]} 3. Nf3 {[%clk 0:03:01.6]} 3... Nf6 {[%clk 0:02:57.1]} 4.
Nc3 {[%clk 0:03:01.9]} 4... Be7 {[%clk 0:02:57.5]} 5. Bf4 {[%clk 0:03:01.1]}
5... O-O {[%clk 0:02:55.6]} 6. e3 {[%clk 0:03:01.6]} 6... c5 {[%clk 0:02:49.4]}
7. dxc5 {[%clk 0:03:00.6]} 7... Bxc5 {[%clk 0:02:50.3]} 8. cxd5 {[%clk
0:02:57.8]} 8... exd5 {[%clk 0:02:49.2]} 9. Bd3 {[%clk 0:02:55.5]} 9... Nc6
{[%clk 0:02:47]} 10. O-O {[%clk 0:02:50.9]} 10... a6 {[%clk 0:02:45.6]} 11. Rc1
{[%clk 0:02:50]} 11... Ba7 {[%clk 0:02:40]} 12. Bb1 {[%clk 0:02:40.9]} 12... h6
{[%clk 0:02:36]} 13. h3 {[%clk 0:02:37.1]} 13... d4 {[%clk 0:02:24.1]} 14. exd4
{[%clk 0:02:36.5]} 14... Nxd4 {[%clk 0:02:25]} 15. Nxd4 {[%clk 0:02:36.6]} 15...
Qxd4 {[%clk 0:02:25.6]} 16. Qf3 {[%clk 0:02:36.5]} 16... Qb4 {[%clk 0:02:20.7]}
17. Be5 {[%clk 0:01:47.6]} 17... Bd4 {[%clk 0:02:10.6]} 18. a3 {[%clk
0:01:45.1]} 18... Qb6 {[%clk 0:02:10.2]} 19. Bxd4 {[%clk 0:01:29.2]} 19... Qxd4
{[%clk 0:02:11.1]} 20. Rfd1 {[%clk 0:01:29.2]} 20... Qb6 {[%clk 0:02:07.3]} 21.
b4 {[%clk 0:01:29.3]} 21... Be6 {[%clk 0:02:05.9]} 22. Na4 {[%clk 0:01:28.9]}
22... Qb5 {[%clk 0:01:53]} 23. Nc5 {[%clk 0:01:28.6]} 23... Rad8 {[%clk
0:01:44]} 24. Nxe6 {[%clk 0:01:23.2]} 24... fxe6 {[%clk 0:01:40.7]} 25. Qe3
{[%clk 0:01:23.2]} 25... e5 {[%clk 0:01:19.2]} 26. Bd3 {[%clk 0:01:14.9]} 26...
Qe8 {[%clk 0:01:12.5]} 27. Bc4+ {[%clk 0:01:08.8]} 27... Kh8 {[%clk 0:01:12.7]}
28. Rxd8 {[%clk 0:01:08.5]} 28... Qxd8 {[%clk 0:01:13.6]} 29. Qxe5 {[%clk
0:01:08.4]} 29... Qd2 {[%clk 0:01:13.4]} 30. Qc3 {[%clk 0:01:01.1]} 30... Qd6
{[%clk 0:00:53.9]} 31. Qe3 {[%clk 0:00:56.5]} 31... b5 {[%clk 0:00:46]} 32. Bb3
{[%clk 0:00:50.1]} 32... Re8 {[%clk 0:00:42.9]} 33. Qf3 {[%clk 0:00:48.5]} 33...
Qd2 {[%clk 0:00:40.6]} 34. Rd1 {[%clk 0:00:45.3]} 34... Re1+ {[%clk 0:00:41.1]}
35. Rxe1 {[%clk 0:00:42.3]} 35... Qxe1+ {[%clk 0:00:42]} 36. Kh2 {[%clk
0:00:42.7]} 36... Qe5+ {[%clk 0:00:42.6]} 37. g3 {[%clk 0:00:42.7]} 37... Qb2
{[%clk 0:00:43.5]} 38. Be6 {[%clk 0:00:40.3]} 38... h5 {[%clk 0:00:41]} 39. Kg2
{[%clk 0:00:39.8]} 39... Qd4 {[%clk 0:00:39.4]} 40. Bc8 {[%clk 0:00:39]} 40...
Qd6 {[%clk 0:00:38.4]} 41. Qa8 {[%clk 0:00:38.8]} 41... Kh7 {[%clk 0:00:35.7]}
42. Bxa6 {[%clk 0:00:38.6]} 42... Nd5 {[%clk 0:00:33.7]} 43. Bxb5 {[%clk
0:00:35.5]} 43... Nc3 {[%clk 0:00:33.9]} 44. Bf1 {[%clk 0:00:33.5]} 44... Qd4
{[%clk 0:00:34]} 45. Qf3 {[%clk 0:00:31.4]} 45... g6 {[%clk 0:00:32.9]} 46. Bd3
{[%clk 0:00:31.2]} 46... Kg7 {[%clk 0:00:32.9]} 47. h4 {[%clk 0:00:28]} 47...
Na2 {[%clk 0:00:30.6]} 48. Qe4 {[%clk 0:00:26.9]} 48... Qd6 {[%clk 0:00:30.5]}
49. Qxg6+ {[%clk 0:00:19.7]} 49... Qxg6 {[%clk 0:00:29.9]} 50. Bxg6 {[%clk
0:00:20.2]} 50... Kxg6 {[%clk 0:00:30.8]} 51. b5 {[%clk 0:00:20.6]} 51... Nc3
{[%clk 0:00:21.9]} 52. b6 {[%clk 0:00:20.4]} 1-0

[Event "*** Titled Tuesday Blitz"]
[Site "Chess.com"]
[Date "2021.04.27"]
[Round "11"]
[White "PotapovaM"]
[Black "Raud100"]
[Result "1-0"]
[WhiteElo "2572"]
[BlackElo "2454"]
[TimeControl "180+1"]
[EndTime "12:04:32 PDT"]
[Termination "PotapovaM won by resignation"]

1. d4 {[%clk 0:03:00.9]} 1... d5 {[%clk 0:02:58.1]} 2. c4 {[%clk 0:03:01.4]}
2... c6 {[%clk 0:02:58.1]} 3. Nf3 {[%clk 0:03:01.3]} 3... Nf6 {[%clk 0:02:58.4]}
4. g3 {[%clk 0:03:01.6]} 4... Bf5 {[%clk 0:02:56]} 5. Nc3 {[%clk 0:03:00.3]}
5... e6 {[%clk 0:02:56.4]} 6. Nh4 {[%clk 0:03:00.7]} 6... Bg4 {[%clk 0:02:55.7]}
7. f3 {[%clk 0:02:26.5]} 7... Bh5 {[%clk 0:02:55.1]} 8. Qb3 {[%clk 0:02:27.2]}
8... Qb6 {[%clk 0:02:54.3]} 9. c5 {[%clk 0:02:18.3]} 9... Qc7 {[%clk 0:02:51.2]}
10. Bf4 {[%clk 0:02:16.9]} 10... Qc8 {[%clk 0:02:51.5]} 11. g4 {[%clk
0:02:11.7]} 11... Bg6 {[%clk 0:02:50.5]} 12. Nxg6 {[%clk 0:02:12]} 12... hxg6
{[%clk 0:02:51.4]} 13. g5 {[%clk 0:02:06.1]} 13... Nh5 {[%clk 0:02:40.9]} 14. e3
{[%clk 0:01:50.6]} 14... Nxf4 {[%clk 0:02:35.3]} 15. exf4 {[%clk 0:01:51.5]}
15... Qc7 {[%clk 0:02:34.1]} 16. Bd3 {[%clk 0:01:36.3]} 16... Nd7 {[%clk
0:02:26.2]} 17. Ne2 {[%clk 0:01:35.8]} 17... b6 {[%clk 0:02:22.8]} 18. cxb6
{[%clk 0:01:34.8]} 18... axb6 {[%clk 0:02:23.7]} 19. Rc1 {[%clk 0:01:33.8]}
19... Bd6 {[%clk 0:02:21.8]} 20. Nc3 {[%clk 0:01:10.8]} 20... Qb7 {[%clk
0:02:12.8]} 21. Ne2 {[%clk 0:01:10.4]} 21... Rh4 {[%clk 0:02:01.8]} 22. Qc2
{[%clk 0:01:02.8]} 22... Rc8 {[%clk 0:01:59.4]} 23. Qa4 {[%clk 0:01:01.6]} 23...
b5 {[%clk 0:01:46.4]} 24. Qb3 {[%clk 0:00:57.4]} 24... Bxf4 {[%clk 0:01:30.9]}
25. Nxf4 {[%clk 0:00:55]} 25... Rxf4 {[%clk 0:01:31.8]} 26. O-O {[%clk
0:00:48.6]} 26... Rxd4 {[%clk 0:01:28.8]} 27. Kh1 {[%clk 0:00:43.9]} 27... Qb6
{[%clk 0:01:19.2]} 28. Bxb5 {[%clk 0:00:41]} 28... Ke7 {[%clk 0:00:47.4]} 29.
Qa3+ {[%clk 0:00:34.2]} 29... c5 {[%clk 0:00:46.5]} 30. Bxd7 {[%clk 0:00:23.3]}
30... Kxd7 {[%clk 0:00:47.4]} 31. Qe3 {[%clk 0:00:11.5]} 31... Rb8 {[%clk
0:00:36.2]} 32. b3 {[%clk 0:00:11.2]} 32... Qd6 {[%clk 0:00:35.9]} 33. Rc2
{[%clk 0:00:10.5]} 33... e5 {[%clk 0:00:26.8]} 34. Rfc1 {[%clk 0:00:10.6]} 34...
Rc8 {[%clk 0:00:26.8]} 35. a4 {[%clk 0:00:09.9]} 35... Ke6 {[%clk 0:00:24.9]}
36. Re1 {[%clk 0:00:08.7]} 36... c4 {[%clk 0:00:24.1]} 37. f4 {[%clk 0:00:08.4]}
37... f6 {[%clk 0:00:19.1]} 38. gxf6 {[%clk 0:00:07.7]} 38... gxf6 {[%clk
0:00:20]} 39. fxe5 {[%clk 0:00:08]} 39... fxe5 {[%clk 0:00:20.9]} 40. Qxd4
{[%clk 0:00:07]} 40... Re8 {[%clk 0:00:17.1]} 41. bxc4 {[%clk 0:00:05.9]} 41...
Ke7 {[%clk 0:00:15.8]} 42. Qxe5+ {[%clk 0:00:05]} 42... Qxe5 {[%clk 0:00:15.8]}
43. Rxe5+ {[%clk 0:00:05.9]} 43... Kd6 {[%clk 0:00:16]} 44. Rxe8 {[%clk
0:00:06.8]} 1-0

[Event "*** Titled Tuesday Blitz"]
[Site "Chess.com"]
[Date "2021.04.27"]
[Round "11"]
[White "The_filthy"]
[Black "AldokhinIvan"]
[Result "0-1"]
[WhiteElo "2402"]
[BlackElo "2529"]
[TimeControl "180+1"]
[EndTime "12:04:35 PDT"]
[Termination "AldokhinIvan won on time"]

1. e4 {[%clk 0:03:00.9]} 1... c5 {[%clk 0:02:59.1]} 2. Nf3 {[%clk 0:03:00.1]}
2... e6 {[%clk 0:02:58.9]} 3. d4 {[%clk 0:03:00.2]} 3... cxd4 {[%clk 0:02:59.6]}
4. Nxd4 {[%clk 0:03:01.1]} 4... a6 {[%clk 0:02:57.2]} 5. Bd3 {[%clk 0:03:00.4]}
5... Qc7 {[%clk 0:02:56.9]} 6. Nc3 {[%clk 0:02:59.6]} 6... Nf6 {[%clk
0:02:57.4]} 7. a4 {[%clk 0:02:57.9]} 7... Bc5 {[%clk 0:02:53.5]} 8. Nb3 {[%clk
0:02:57.5]} 8... Ba7 {[%clk 0:02:49.6]} 9. O-O {[%clk 0:02:53.6]} 9... Nc6
{[%clk 0:02:50]} 10. Qe2 {[%clk 0:02:50.7]} 10... h5 {[%clk 0:02:49.5]} 11. Be3
{[%clk 0:02:43.5]} 11... Ng4 {[%clk 0:02:49.6]} 12. g3 {[%clk 0:02:36.5]} 12...
Nxe3 {[%clk 0:02:47.1]} 13. fxe3 {[%clk 0:02:36.7]} 13... h4 {[%clk 0:02:47.7]}
14. Rf3 {[%clk 0:02:36.2]} 14... Ne5 {[%clk 0:02:45.8]} 15. Rf4 {[%clk
0:02:36.2]} 15... g5 {[%clk 0:02:42.8]} 16. Rf2 {[%clk 0:02:31]} 16... hxg3
{[%clk 0:02:39.9]} 17. hxg3 {[%clk 0:02:31]} 17... d6 {[%clk 0:02:32]} 18. Rg2
{[%clk 0:02:25.2]} 18... g4 {[%clk 0:02:30.9]} 19. Nd4 {[%clk 0:02:15.1]} 19...
Bd7 {[%clk 0:02:29.7]} 20. Rf1 {[%clk 0:02:11.1]} 20... O-O-O {[%clk 0:02:29.4]}
21. Rf4 {[%clk 0:02:06]} 21... Rh3 {[%clk 0:02:13.5]} 22. Rxg4 {[%clk
0:02:03.6]} 22... Nxg4 {[%clk 0:02:08]} 23. Qxg4 {[%clk 0:02:03.7]} 23... Rh7
{[%clk 0:01:51.9]} 24. e5 {[%clk 0:02:00.5]} 24... dxe5 {[%clk 0:01:29.7]} 25.
Bxh7 {[%clk 0:01:59.3]} 25... exd4 {[%clk 0:01:30.1]} 26. exd4 {[%clk
0:01:59.6]} 26... f5 {[%clk 0:01:23.7]} 27. Qh4 {[%clk 0:01:52.2]} 27... Bc6
{[%clk 0:01:15.4]} 28. Rd2 {[%clk 0:01:38.4]} 28... Rh8 {[%clk 0:01:14]} 29. Rh2
{[%clk 0:01:35.5]} 29... Qg7 {[%clk 0:00:53.3]} 30. Kf1 {[%clk 0:01:13.2]} 30...
Bxd4 {[%clk 0:00:47]} 31. Ne2 {[%clk 0:01:01.1]} 31... Bxb2 {[%clk 0:00:41]} 32.
Nf4 {[%clk 0:00:59.6]} 32... Qd4 {[%clk 0:00:36.9]} 33. Re2 {[%clk 0:00:45.2]}
33... Qxa4 {[%clk 0:00:22.3]} 34. Qe7 {[%clk 0:00:39.3]} 34... Qa1+ {[%clk
0:00:13.7]} 35. Re1 {[%clk 0:00:15.7]} 35... Bb5+ {[%clk 0:00:13.4]} 36. Nd3
{[%clk 0:00:15.2]} 36... Qa2 {[%clk 0:00:06.4]} 37. Rxe6 {[%clk 0:00:07.3]}
37... Rxh7 {[%clk 0:00:01.4]} 38. Qxh7 {[%clk 0:00:03.1]} 38... Qxe6 {[%clk
0:00:01.4]} 39. Qh8+ {[%clk 0:00:03.1]} 39... Qe8 {[%clk 0:00:02]} 40. Qxb2
{[%clk 0:00:02.2]} 40... Kb8 {[%clk 0:00:01.9]} 41. Qc3 {[%clk 0:00:02.5]} 41...
Ka8 {[%clk 0:00:02.1]} 42. Kf2 {[%clk 0:00:02.2]} 42... Qe4 {[%clk 0:00:02.4]}
0-1

[Event "*** Titled Tuesday Blitz"]
[Site "Chess.com"]
[Date "2021.04.27"]
[Round "11"]
[White "WonderChampion"]
[Black "malakismayil"]
[Result "0-1"]
[WhiteElo "2097"]
[BlackElo "2249"]
[TimeControl "180+1"]
[EndTime "12:04:35 PDT"]
[Termination "malakismayil won on time"]

1. d4 {[%clk 0:03:00.9]} 1... Nf6 {[%clk 0:02:57.4]} 2. Bg5 {[%clk 0:03:01]}
2... e6 {[%clk 0:02:56]} 3. e4 {[%clk 0:03:00.6]} 3... Be7 {[%clk 0:02:53.7]} 4.
Bd3 {[%clk 0:02:58]} 4... h6 {[%clk 0:02:52]} 5. Bxf6 {[%clk 0:02:55.6]} 5...
Bxf6 {[%clk 0:02:51.3]} 6. Nf3 {[%clk 0:02:56.5]} 6... d6 {[%clk 0:02:48.9]} 7.
O-O {[%clk 0:02:57.4]} 7... Nc6 {[%clk 0:02:47.3]} 8. Nc3 {[%clk 0:02:58.3]}
8... O-O {[%clk 0:02:44]} 9. Bb5 {[%clk 0:02:57.9]} 9... Bd7 {[%clk 0:02:36.2]}
10. Re1 {[%clk 0:02:56.2]} 10... e5 {[%clk 0:02:30.5]} 11. d5 {[%clk 0:02:46.9]}
11... Ne7 {[%clk 0:02:20.6]} 12. Bxd7 {[%clk 0:02:39.3]} 12... Qxd7 {[%clk
0:02:21.5]} 13. h3 {[%clk 0:02:37.3]} 13... Ng6 {[%clk 0:02:19.5]} 14. Qd2
{[%clk 0:02:34.5]} 14... Nf4 {[%clk 0:02:16.6]} 15. Nh2 {[%clk 0:02:30.1]} 15...
Bg5 {[%clk 0:02:14.5]} 16. Qd1 {[%clk 0:02:27.1]} 16... f5 {[%clk 0:02:11.8]}
17. exf5 {[%clk 0:02:24.3]} 17... Qxf5 {[%clk 0:02:12.7]} 18. Ne4 {[%clk
0:02:18]} 18... Bh4 {[%clk 0:01:55.2]} 19. Qg4 {[%clk 0:02:06.3]} 19... Qxg4
{[%clk 0:01:50.2]} 20. Nxg4 {[%clk 0:02:07.2]} 20... Nxd5 {[%clk 0:01:48.4]} 21.
g3 {[%clk 0:02:03.2]} 21... Be7 {[%clk 0:01:44.4]} 22. c4 {[%clk 0:02:02.1]}
22... Nb4 {[%clk 0:01:41.1]} 23. Rad1 {[%clk 0:01:58.9]} 23... Nc2 {[%clk
0:01:39.7]} 24. Re2 {[%clk 0:01:55.4]} 24... Nd4 {[%clk 0:01:36.8]} 25. Re3
{[%clk 0:01:52.2]} 25... h5 {[%clk 0:01:34.4]} 26. Nh2 {[%clk 0:01:47.8]} 26...
Rf7 {[%clk 0:01:28]} 27. b3 {[%clk 0:01:43.4]} 27... Raf8 {[%clk 0:01:26]} 28.
Rd2 {[%clk 0:01:36.7]} 28... Rf5 {[%clk 0:01:14.1]} 29. Red3 {[%clk 0:01:25.4]}
29... g5 {[%clk 0:00:56.3]} 30. b4 {[%clk 0:01:06.3]} 30... Kg7 {[%clk
0:00:46.9]} 31. g4 {[%clk 0:01:02.9]} 31... hxg4 {[%clk 0:00:42.1]} 32. hxg4
{[%clk 0:01:03.8]} 32... Rf4 {[%clk 0:00:41.1]} 33. Ng3 {[%clk 0:01:02.4]} 33...
Kg6 {[%clk 0:00:35.8]} 34. Kg2 {[%clk 0:00:58.2]} 34... Ne6 {[%clk 0:00:29.8]}
35. Nf5 {[%clk 0:00:32.6]} 35... Rxg4+ {[%clk 0:00:21.5]} 36. Nxg4 {[%clk
0:00:30.6]} 36... Rxf5 {[%clk 0:00:21.8]} 37. Re3 {[%clk 0:00:19.4]} 37... Rf4
{[%clk 0:00:20.1]} 38. Nh2 {[%clk 0:00:14.2]} 38... Rxc4 {[%clk 0:00:20]} 39.
Rb2 {[%clk 0:00:14.2]} 39... Bf6 {[%clk 0:00:17.5]} 40. Rbb3 {[%clk 0:00:13.1]}
40... Nf4+ {[%clk 0:00:17.3]} 41. Kg3 {[%clk 0:00:10.7]} 41... Nd5 {[%clk
0:00:16.2]} 42. Rf3 {[%clk 0:00:06.7]} 42... e4 {[%clk 0:00:13.2]} 0-1

[Event "*** Titled Tuesday Blitz"]
[Site "Chess.com"]
[Date "2021.04.27"]
[Round "11"]
[White "moro182"]
[Black "Ibrayevnb"]
[Result "0-1"]
[WhiteElo "2695"]
[BlackElo "2525"]
[TimeControl "180+1"]
[EndTime "12:04:36 PDT"]
[Termination "Ibrayevnb won on time"]

1. d4 {[%clk 0:03:00.9]} 1... Nf6 {[%clk 0:02:40.4]} 2. c4 {[%clk 0:03:00.8]}
2... e6 {[%clk 0:02:38.1]} 3. Nc3 {[%clk 0:03:00.9]} 3... Bb4 {[%clk 0:02:37.1]}
4. Nf3 {[%clk 0:03:01.3]} 4... b6 {[%clk 0:02:35.4]} 5. Qb3 {[%clk 0:03:00.3]}
5... c5 {[%clk 0:02:34.4]} 6. dxc5 {[%clk 0:02:59.9]} 6... bxc5 {[%clk
0:02:34.3]} 7. Bf4 {[%clk 0:02:50]} 7... Nc6 {[%clk 0:02:31.9]} 8. a3 {[%clk
0:02:47.2]} 8... Bxc3+ {[%clk 0:01:34.7]} 9. Qxc3 {[%clk 0:02:47]} 9... O-O
{[%clk 0:01:33.3]} 10. e3 {[%clk 0:02:35.9]} 10... Ne4 {[%clk 0:01:29]} 11. Qc2
{[%clk 0:02:35.7]} 11... Qa5+ {[%clk 0:01:24.6]} 12. Nd2 {[%clk 0:02:35.9]}
12... d5 {[%clk 0:01:17.7]} 13. Bd3 {[%clk 0:01:59.8]} 13... Nb4 {[%clk
0:01:14.7]} 14. axb4 {[%clk 0:01:20.6]} 14... Qxa1+ {[%clk 0:01:13.7]} 15. Nb1
{[%clk 0:01:21]} 15... cxb4 {[%clk 0:01:07.4]} 16. O-O {[%clk 0:01:16.5]} 16...
b3 {[%clk 0:01:04.7]} 17. Qxb3 {[%clk 0:01:08.4]} 17... Nc5 {[%clk 0:01:01.8]}
18. Qc2 {[%clk 0:00:18.7]} 18... Nxd3 {[%clk 0:01:01.4]} 19. Qxd3 {[%clk
0:00:19.6]} 19... Ba6 {[%clk 0:01:01.8]} 20. Qc2 {[%clk 0:00:13.2]} 20... Bxc4
{[%clk 0:00:58.8]} 21. Rc1 {[%clk 0:00:13.7]} 21... Qa6 {[%clk 0:00:51.6]} 22.
Be5 {[%clk 0:00:12.3]} 22... f6 {[%clk 0:00:48.6]} 23. Bc3 {[%clk 0:00:12.5]}
23... e5 {[%clk 0:00:44.7]} 24. Nd2 {[%clk 0:00:11.7]} 24... Rfd8 {[%clk
0:00:39.5]} 25. h4 {[%clk 0:00:08.8]} 25... Rac8 {[%clk 0:00:36.9]} 26. Nf3
{[%clk 0:00:06.7]} 26... Be2 {[%clk 0:00:34]} 27. Qd2 {[%clk 0:00:03.2]} 27...
Bxf3 {[%clk 0:00:31.1]} 28. gxf3 {[%clk 0:00:04.1]} 28... Rc4 {[%clk 0:00:28.3]}
29. h5 {[%clk 0:00:03.2]} 29... Qc8 {[%clk 0:00:22.4]} 30. Rd1 {[%clk
0:00:02.2]} 30... Qh3 {[%clk 0:00:18.7]} 31. e4 {[%clk 0:00:01.8]} 31... d4
{[%clk 0:00:17.9]} 32. Bb4 {[%clk 0:00:01.4]} 32... Qxf3 {[%clk 0:00:17.4]} 33.
b3 {[%clk 0:00:01.7]} 33... Qxb3 {[%clk 0:00:16.8]} 34. Ba5 {[%clk 0:00:01.2]}
34... Rd7 {[%clk 0:00:15.7]} 35. Qe2 {[%clk 0:00:02.1]} 35... d3 {[%clk
0:00:15.3]} 36. Qg4 {[%clk 0:00:02.4]} 36... Qb5 {[%clk 0:00:14.5]} 37. Qe6+
{[%clk 0:00:02.8]} 37... Kf8 {[%clk 0:00:12.9]} 38. Bd2 {[%clk 0:00:03.2]} 38...
Qc6 {[%clk 0:00:12.2]} 39. Qf5 {[%clk 0:00:03.6]} 39... Rxe4 {[%clk 0:00:10.4]}
40. h6 {[%clk 0:00:03.9]} 40... g6 {[%clk 0:00:10.1]} 41. Qf3 {[%clk 0:00:03.3]}
41... Kf7 {[%clk 0:00:10]} 42. Kf1 {[%clk 0:00:02.8]} 42... Re1+ {[%clk
0:00:09.7]} 43. Bxe1 {[%clk 0:00:02.5]} 43... Qxf3 {[%clk 0:00:10.6]} 44. Rc1
{[%clk 0:00:02.9]} 44... Qe2+ {[%clk 0:00:10.7]} 0-1

[Event "*** Titled Tuesday Blitz"]
[Site "Chess.com"]
[Date "2021.04.27"]
[Round "11"]
[White "Nils_03"]
[Black "Legendinunknown"]
[Result "1/2-1/2"]
[WhiteElo "2461"]
[BlackElo "2602"]
[TimeControl "180+1"]
[EndTime "12:04:38 PDT"]
[Termination "Game drawn by repetition"]

1. d4 {[%clk 0:03:00.9]} 1... d5 {[%clk 0:02:58.6]} 2. c4 {[%clk 0:03:00.8]}
2... c6 {[%clk 0:02:57.4]} 3. Nf3 {[%clk 0:03:00.1]} 3... Nf6 {[%clk 0:02:55.7]}
4. e3 {[%clk 0:02:59.9]} 4... e6 {[%clk 0:02:52.5]} 5. b3 {[%clk 0:02:59.5]}
5... Bd6 {[%clk 0:02:47.3]} 6. Bd3 {[%clk 0:02:59.6]} 6... Nbd7 {[%clk 0:02:45]}
7. Bb2 {[%clk 0:02:59.6]} 7... Ne4 {[%clk 0:02:43.4]} 8. O-O {[%clk 0:02:52.7]}
8... O-O {[%clk 0:02:42]} 9. Nbd2 {[%clk 0:02:51.5]} 9... f5 {[%clk 0:02:41.2]}
10. Ne5 {[%clk 0:02:50.7]} 10... Qf6 {[%clk 0:02:39]} 11. f4 {[%clk 0:02:45.8]}
11... Qh6 {[%clk 0:02:35]} 12. Nxe4 {[%clk 0:02:43.3]} 12... fxe4 {[%clk
0:02:35.9]} 13. Be2 {[%clk 0:02:43.9]} 13... Nxe5 {[%clk 0:02:27.6]} 14. dxe5
{[%clk 0:02:43.8]} 14... Be7 {[%clk 0:02:27]} 15. Rc1 {[%clk 0:02:38.8]} 15...
Bd7 {[%clk 0:02:25.1]} 16. Bg4 {[%clk 0:02:33.9]} 16... Rad8 {[%clk 0:02:21.9]}
17. Bh3 {[%clk 0:02:33]} 17... Be8 {[%clk 0:02:17.4]} 18. Qg4 {[%clk 0:02:32.1]}
18... Rf5 {[%clk 0:02:10.9]} 19. cxd5 {[%clk 0:02:16.9]} 19... Rxd5 {[%clk
0:02:08.5]} 20. Qe2 {[%clk 0:01:56.8]} 20... Rh5 {[%clk 0:02:07]} 21. Qg4 {[%clk
0:01:37]} 21... Rf5 {[%clk 0:02:00.5]} 22. Qe2 {[%clk 0:01:36.6]} 22... Rh5
{[%clk 0:01:59.2]} 23. Qg4 {[%clk 0:01:36.8]} 23... Bf7 {[%clk 0:01:57.5]} 24.
Kh1 {[%clk 0:01:22]} 24... Bc5 {[%clk 0:01:45.9]} 25. f5 {[%clk 0:01:12.1]}
25... Rg5 {[%clk 0:01:31.8]} 26. Qxe4 {[%clk 0:01:11.6]} 26... Rh5 {[%clk
0:01:22.1]} 27. fxe6 {[%clk 0:01:03.2]} 27... Bxe6 {[%clk 0:01:23]} 28. Bxe6+
{[%clk 0:01:01]} 28... Qxe6 {[%clk 0:01:23.9]} 29. Qf3 {[%clk 0:01:01.6]} 29...
Qe8 {[%clk 0:01:21.1]} 30. e6 {[%clk 0:00:59.4]} 30... Rdf5 {[%clk 0:01:05.1]}
31. Qg4 {[%clk 0:00:56.3]} 31... Rhg5 {[%clk 0:01:00]} 32. Qc4 {[%clk
0:00:54.7]} 32... Bxe3 {[%clk 0:00:58.1]} 33. Rxf5 {[%clk 0:00:49.5]} 33... Rxf5
{[%clk 0:00:59]} 34. Qc3 {[%clk 0:00:48.9]} 34... Bh6 {[%clk 0:00:57.9]} 35. Re1
{[%clk 0:00:43.5]} 35... Qxe6 {[%clk 0:00:52.6]} 36. h3 {[%clk 0:00:37.2]} 36...
Qd5 {[%clk 0:00:46.4]} 37. Qg3 {[%clk 0:00:32.1]} 37... Qd2 {[%clk 0:00:37.7]}
38. Bc3 {[%clk 0:00:25.1]} 38... Qd7 {[%clk 0:00:29]} 39. Bb4 {[%clk 0:00:20.8]}
39... c5 {[%clk 0:00:25.3]} 40. Bc3 {[%clk 0:00:17.9]} 40... Bf4 {[%clk
0:00:20.7]} 41. Qg4 {[%clk 0:00:17.8]} 41... Bh6 {[%clk 0:00:17.4]} 42. Rd1
{[%clk 0:00:16.5]} 42... Qc8 {[%clk 0:00:15.3]} 43. Qc4+ {[%clk 0:00:13]} 43...
Kh8 {[%clk 0:00:14.7]} 44. Qd3 {[%clk 0:00:13.6]} 44... Rf8 {[%clk 0:00:14.2]}
45. Qd6 {[%clk 0:00:13.3]} 45... Kg8 {[%clk 0:00:12.3]} 46. Qd5+ {[%clk
0:00:11.7]} 46... Kh8 {[%clk 0:00:12.2]} 47. Qd6 {[%clk 0:00:12.4]} 47... Bf4
{[%clk 0:00:11.8]} 48. Qe7 {[%clk 0:00:11.4]} 48... Bh6 {[%clk 0:00:11.2]} 49.
Qd6 {[%clk 0:00:11.3]} 1/2-1/2

[Event "*** Titled Tuesday Blitz"]
[Site "Chess.com"]
[Date "2021.04.27"]
[Round "11"]
[White "AttackSparrow"]
[Black "OlifantCZ"]
[Result "0-1"]
[WhiteElo "2440"]
[BlackElo "2274"]
[TimeControl "180+1"]
[EndTime "12:04:40 PDT"]
[Termination "OlifantCZ won on time"]

1. e4 {[%clk 0:03:00.9]} 1... e6 {[%clk 0:02:59.2]} 2. d4 {[%clk 0:03:00.3]}
2... d5 {[%clk 0:02:59.4]} 3. Bd3 {[%clk 0:03:00.2]} 3... dxe4 {[%clk 0:02:58]}
4. Bxe4 {[%clk 0:03:01.1]} 4... Nf6 {[%clk 0:02:58.4]} 5. Bf3 {[%clk 0:03:01.1]}
5... Nbd7 {[%clk 0:02:58.6]} 6. Ne2 {[%clk 0:03:00.7]} 6... Be7 {[%clk 0:02:56]}
7. O-O {[%clk 0:02:59.3]} 7... O-O {[%clk 0:02:55.9]} 8. Ng3 {[%clk 0:02:59.9]}
8... c5 {[%clk 0:02:55.1]} 9. dxc5 {[%clk 0:02:50.9]} 9... Bxc5 {[%clk
0:02:53.8]} 10. Qe2 {[%clk 0:02:45.7]} 10... Qc7 {[%clk 0:02:51.9]} 11. Bg5
{[%clk 0:02:21.9]} 11... Be7 {[%clk 0:02:44.4]} 12. Re1 {[%clk 0:02:16.1]} 12...
h6 {[%clk 0:02:36.9]} 13. Be3 {[%clk 0:01:52.3]} 13... Ne5 {[%clk 0:02:31.5]}
14. Nc3 {[%clk 0:01:47.1]} 14... Nxf3+ {[%clk 0:02:30.6]} 15. Qxf3 {[%clk
0:01:48]} 15... a6 {[%clk 0:02:30.3]} 16. Bf4 {[%clk 0:01:47.5]} 16... Qb6
{[%clk 0:02:20.3]} 17. Be5 {[%clk 0:01:46.9]} 17... Bd7 {[%clk 0:02:16]} 18.
Rad1 {[%clk 0:01:42.3]} 18... Bc6 {[%clk 0:02:15.5]} 19. Qe2 {[%clk 0:01:37.3]}
19... Rfd8 {[%clk 0:02:13.9]} 20. h3 {[%clk 0:01:36.1]} 20... Rxd1 {[%clk
0:02:09.9]} 21. Rxd1 {[%clk 0:01:37]} 21... Rd8 {[%clk 0:02:10.3]} 22. Re1
{[%clk 0:01:29.5]} 22... Nd7 {[%clk 0:01:26.9]} 23. Bf4 {[%clk 0:01:23.7]} 23...
Qxb2 {[%clk 0:01:23.8]} 24. Nce4 {[%clk 0:01:15.8]} 24... Nf6 {[%clk 0:01:20.5]}
25. Nxf6+ {[%clk 0:01:04.4]} 25... Bxf6 {[%clk 0:01:20.2]} 26. Nh5 {[%clk
0:01:04.5]} 26... Bc3 {[%clk 0:01:16.1]} 27. Qg4 {[%clk 0:00:48.3]} 27... Bxe1
{[%clk 0:01:04.7]} 28. Bxh6 {[%clk 0:00:35.3]} 28... Bc3 {[%clk 0:01:03.4]} 29.
Bg5 {[%clk 0:00:27.5]} 29... Qb1+ {[%clk 0:00:54]} 30. Kh2 {[%clk 0:00:27.3]}
30... Be5+ {[%clk 0:00:53]} 31. f4 {[%clk 0:00:27.1]} 31... Rd1 {[%clk
0:00:51.7]} 32. fxe5 {[%clk 0:00:15.2]} 32... Rh1+ {[%clk 0:00:49.1]} 33. Kg3
{[%clk 0:00:15.6]} 33... Qe1+ {[%clk 0:00:49.1]} 34. Kf4 {[%clk 0:00:15.3]}
34... Rf1+ {[%clk 0:00:38.9]} 35. Qf3 {[%clk 0:00:11.3]} 35... Qe4+ {[%clk
0:00:34.1]} 36. Kg3 {[%clk 0:00:11.1]} 36... Rxf3+ {[%clk 0:00:33.7]} 37. gxf3
{[%clk 0:00:08.2]} 37... Qxf3+ {[%clk 0:00:33.2]} 38. Kh4 {[%clk 0:00:08.7]}
38... Qe4+ {[%clk 0:00:32]} 39. Bf4 {[%clk 0:00:04.8]} 39... Qxc2 {[%clk
0:00:30.8]} 40. Ng3 {[%clk 0:00:03]} 40... Qxa2 {[%clk 0:00:30.1]} 41. Kg4
{[%clk 0:00:03]} 41... b5 {[%clk 0:00:29.6]} 42. h4 {[%clk 0:00:03.3]} 42... b4
{[%clk 0:00:29.9]} 43. h5 {[%clk 0:00:03.8]} 43... b3 {[%clk 0:00:30.3]} 44. h6
{[%clk 0:00:04]} 44... gxh6 {[%clk 0:00:30.6]} 45. Nh5 {[%clk 0:00:03.9]} 45...
Qe2+ {[%clk 0:00:29]} 46. Kh4 {[%clk 0:00:04.2]} 46... Qe1+ {[%clk 0:00:23.7]}
47. Bg3 {[%clk 0:00:02]} 47... Qb4+ {[%clk 0:00:23.6]} 48. Kh3 {[%clk 0:00:02]}
48... b2 {[%clk 0:00:23.1]} 49. Nf6+ {[%clk 0:00:02.3]} 49... Kg7 {[%clk
0:00:22.8]} 50. Nh5+ {[%clk 0:00:02.4]} 50... Kg6 {[%clk 0:00:23.1]} 51. Nf6
{[%clk 0:00:01.6]} 51... b1=Q {[%clk 0:00:21.7]} 0-1